Cogmind - Beta 11.1 @@@ ROGUE MODE // 2022.07.18 @ 19:18:42 Player: T-900 Result: Destroyed by Y-45 Defender with Beam Rifle Performance ------------- Evolutions (1) 500 Regions Visited (2) 400 Robots Destroyed (19) 95 Value Destroyed (364) 364 Prototype IDs (0) 0 Alien Tech Used (0) 0 Bonus (0) 0 TOTAL SCORE: 1359 Bonus ------- None Cogmind --------- Core Integrity 0/400 Matter 176/300 Energy 119/125 System Corruption 0% Temperature Cool (21) Movement Treading (160) Location -9/Materials Parts ------- > --- POWER (1) -------- Light Ion Engine > --- PROPULSION (3) --- Light Treads > --- UTILITY (3) ------ Medium Storage Unit Signal Interpreter > --- WEAPON (2) ------- (None) > --- INVENTORY (10) --- Light Ion Engine Aluminum Leg Peak State ------------ > --- POWER ------------ Ion Engine > --- PROPULSION ------- Light Treads Light Treads Aluminum Leg > --- UTILITY ---------- Medium Storage Unit Signal Interpreter > --- WEAPON ----------- Assault Rifle Heavy Assault Rifle > --- INVENTORY -------- Light Ion Engine Light Ion Engine Aluminum Leg Assault Rifle Grenade Launcher [Rating: 9] Favorites ----------- Power Ion Engine Engine Ion Engine Propulsion Light Treads Treads Light Treads Leg Aluminum Leg Utility Signal Interpreter Storage Medium Storage Unit Processor Signal Interpreter Weapon Assault Rifle Ballistic Gun Assault Rifle Launcher Grenade Launcher Build | -11 -10 -9 ------- Run | Scr Mat Mat Slots Evolved 2 | . . 2 Power . | . . . Propulsion 1 | . . 1 Utility 1 | . . 1 Weapon . | . . . Parts Attached 19 | 6 5 8 Power 3 | 1 1 1 Engine 3 | 1 1 1 Core . | . . . Reactor . | . . . Propulsion 5 | 2 1 2 Treads 4 | 2 1 1 Leg 1 | . . 1 Wheel . | . . . Hover . | . . . Flight . | . . . Utility 3 | 1 2 . Device . | . . . Storage 2 | 1 1 . Processor 1 | . 1 . Hackware . | . . . Protection . | . . . Artifact . | . . . Weapon 8 | 2 1 5 Energy Gun . | . . . Energy Cannon . | . . . Ballistic Gun 7 | 2 1 4 Ballistic Cannon . | . . . Launcher 1 | . . 1 Special Weapon . | . . . Impact Weapon . | . . . Slashing Weapon . | . . . Piercing Weapon . | . . . Special Melee Weapon . | . . . Unidentified Prototypes . | . . . Parts Lost 10 | . . 10 Power 1 | . . 1 Propulsion 3 | . . 3 Utility . | . . . Weapon 6 | . . 6 Highest Loss Streak 8 | . . 8 To Critical Strikes . | . . . Average Slot Usage (%) 84 | . 95 70 Engine 12 | . 14 9 Treads 23 | . 27 18 Storage 12 | . 14 11 Processor 10 | . 10 11 Ballistic Gun 23 | . 27 17 Naked Turns . | . . . Heaviest Build 19 | 14 19 19 Greatest Support 40 | 40 40 40 Greatest Overweight (x) 4 | 4 . 4 Average Overweight (x) . | . . . Largest Inventory Capacity 10 | 8 10 10 Average Capacity 9 | 7 9 10 Most Carried 9 | 5 9 8 Average Carried 6 | 3 6 6 Final Capacity 10 | 8 10 10 Final Carried 7 | 4 7 2 Class Distribution -------------------- 100% | Mutant Dominant Class ---------------- Mutant | -10/Materials Mutant | -9/Materials Resources | -11 -10 -9 ----------- Run | Scr Mat Mat Matter Collected 497 | 130 240 127 Remotely . | . . . Salvage Created 707 | . 315 392 Parts 39 | . 23 16 Haulers Intercepted 1 | . 1 . Recyclers Shooed 1 | . . 1 Parts Field Recycled . | . . . Retrieved Matter . | . . . Parts Self-Destructed . | . . . Prevented . | . . . Kills | -11 -10 -9 ------- Run | Scr Mat Mat Combat Hostiles Destroyed 13 | . 8 5 Guns 12 | . 8 4 AOE 1 | . . 1 Classes Destroyed 6 | . 5 1 Hauler 1 | . 1 . Recycler 3 | . 1 2 Watcher 2 | . 1 1 Swarmer 6 | . 6 . Grunt 5 | . 2 3 Brawler 2 | . . 2 Best Kill Streak 6 | . 5 6 Combat Bots Only 4 | . 4 4 Max Kills in Single Turn 3 | . 1 3 Gunslinging . | . . . Exploded 1 | . . 1 Melee . | . . . Uniques/NPCs Destroyed . | . . . Combat | -11 -10 -9 -------- Run | Scr Mat Mat Damage Taken 1698 | . 229 1469 Core 469 | . 57 412 Absorbed by Shields . | . . . Core Remaining (%) 88 | 100 77 . Volleys Fired 48 | . 26 22 Largest 2 | . 2 2 Hottest 53 | . 40 53 Shots Fired 92 | . 52 40 Gun 91 | . 52 39 Cannon . | . . . Launcher 1 | . . 1 Special . | . . . Kinetic 91 | . 52 39 Thermal . | . . . Explosive 1 | . . 1 Electromagnetic . | . . . Robot Hit Streak 9 | . 9 8 Robot Miss Streak 3 | . 3 2 Penetration Max . | . . . Secondary Targets 2 | . . 2 Max Gunslinging Chain 1 | . . 1 Shots Hit Robots 52 | . 28 24 Core Hits 31 | . 15 16 Critical Kills . | . . . Critical Parts Destroyed . | . . . Critical Strikes . | . . . Melee Attacks . | . . . Impact . | . . . Slashing . | . . . Piercing . | . . . Sneak Attacks . | . . . Combat Hostiles . | . . . Follow-up Attacks . | . . . Damage Inflicted 840 | . 350 490 Guns 703 | . 350 353 Cannons . | . . . Explosions 136 | . . 136 Melee . | . . . Ramming 1 | . . 1 Kinetic 703 | . 350 353 Thermal . | . . . Explosive 136 | . . 136 Electromagnetic . | . . . Impact . | . . . Slashing . | . . . Piercing . | . . . Highest Corruption . | . . . Average Corruption . | . . . Corruption Purged . | . . . Corruption Blocked . | . . . Overload Shots . | . . . Overflow Damage 2 | . . 2 Projectiles . | . . . Explosions 2 | . . 2 Melee . | . . . Knockbacks . | . . . Impact . | . . . Kinetic . | . . . Secondary . | . . . Self-Inflicted Damage . | . . . Shots . | . . . Rammed 1 | . . 1 Targets Rammed 1 | . . 1 Kicked . | . . . Crushed . | . . . Highest Temperature 18 | . . 18 Average Temperature 7 | . . 7 Received Heat Transfer 672 | . 30 642 Siege Activations . | . . . Robots Corrupted . | . . . Combat Hostiles . | . . . Parts Fried . | . . . Impact Corruptions . | . . . Robots Melted . | . . . Combat Hostiles . | . . . Parts Melted . | . . . Heat Transferred . | . . . Parts Sabotaged . | . . . Parts Stolen . | . . . Parts Stripped . | . . . Power Chain Reactions . | . . . Missiles Intercepted . | . . . Alert | -11 -10 -9 ------- Run | Scr Mat Mat Peak Influence 214 | . 214 160 Initial 5 | . . 5 Average 60 | . 79 49 Maximum Alert Level 1 | . 1 . Low Security (%) 98 | 100 96 100 Level 1 1 | . 3 . Level 2 . | . . . Level 3 . | . . . Level 4 . | . . . Level 5 . | . . . High Security . | . . . Max Security . | . . . Squads Dispatched 1 | . . 1 Investigation . | . . . Extermination . | . . . Reinforcement 1 | . . 1 Assault . | . . . Garrison . | . . . Intercept . | . . . Searches Triggered . | . . . Construction Impeded . | . . . Haulers Reinforced . | . . . Active Scanning Responses . | . . . Cargo Convoy Interrupts . | . . . Stealth | -11 -10 -9 --------- Run | Scr Mat Mat Distress Signals 1 | . . 1 Communications Jammed . | . . . Distress Signals . | . . . Times Spotted 25 | . 9 16 Peak Tracking Total 10 | . 3 10 Tactical Retreats 2 | . . 2 Traps | -11 -10 -9 ------- Run | Scr Mat Mat Traps Triggered 2 | . 1 1 Indirectly . | . . . Trap Hack Attempts . | . . . Triggered . | . . . Disarmed . | . . . Reprogrammed . | . . . Reused . | . . . Traps Extracted . | . . . Installed . | . . . Triggered . | . . . Machines | -11 -10 -9 ---------- Run | Scr Mat Mat Machines Disabled 1 | . . 1 Max in Single Turn 1 | . . 1 Machines Sabotaged . | . . . Garrisons Compromised . | . . . Overloaded Fab Kills . | . . . Hacking | -11 -10 -9 --------- Run | Scr Mat Mat Machines Accessed . | . . . Terminals . | . . . Fabricators . | . . . Repair Stations . | . . . Recycling Units . | . . . Scanalyzers . | . . . Garrison Access . | . . . Total Hacks . | . . . Successful . | . . . Failed . | . . . Catastrophic . | . . . Database Lockouts . | . . . Manual . | . . . Terminals . | . . . Fabricators . | . . . Repair Stations . | . . . Recycling Units . | . . . Scanalyzers . | . . . Garrison Access . | . . . Terminal Hacks . | . . . Fabricator Hacks . | . . . Repair Station Hacks . | . . . Recycling Unit Hacks . | . . . Scanalyzer . | . . . Garrison Access Hacks . | . . . Unauthorized Hacks . | . . . Terminals . | . . . Fabricators . | . . . Repair Stations . | . . . Recycling Units . | . . . Scanalyzers . | . . . Garrison Access . | . . . Data Cores Recovered . | . . . Used . | . . . Hacking Detections . | . . . Full Trace Events . | . . . Feedback Events . | . . . Feedback Blocked . | . . . Robot Schematics Acquired . | . . . Robots Built . | . . . Authchips . | . . . Time . | . . . Total Robot Build Rating . | . . . Part Schematics Acquired . | . . . Parts Built . | . . . Authchips . | . . . Time . | . . . Total Part Build Rating . | . . . Parts Repaired . | . . . Time . | . . . Parts Recycled . | . . . Recycled Matter . | . . . Retrieved Matter . | . . . Retrieved Components . | . . . Parts Scanalyzed . | . . . Part Schematics Acquired . | . . . Parts Damaged . | . . . Bothacking | -11 -10 -9 ------------ Run | Scr Mat Mat Used RIF Installer . | . . . Robots Hacked . | . . . Non-combat . | . . . Combat . | . . . Robot Hacks Applied . | . . . Relay Couplers Released . | . . . Fabnet Peak Effective % . | . . . Robots Rewired . | . . . Allies Hacked . | . . . Hacks Repelled . | . . . Allies | -11 -10 -9 -------- Run | Scr Mat Mat Total Allies . | . . . Largest Group . | . . . Highest-Rated Group . | . . . Highest-Rated Ally . | . . . Total Orders . | . . . Ally Attacks . | . . . Total Damage . | . . . Kills . | . . . Allies Corrupted . | . . . Allies Melted . | . . . Intel | -11 -10 -9 ------- Run | Scr Mat Mat Robot Analysis Total . | . . . Derelict Logs Recovered . | . . . Drone Launches . | . . . Drone Recoveries . | . . . Exploration | -11 -10 -9 ------------- Run | Scr Mat Mat Turns Passed 799 | 73 433 293 Spaces Moved 357 | 44 185 128 Core 30 | 27 . 3 Treads 327 | 17 185 125 Legs . | . . . Wheels . | . . . Hover . | . . . Flight . | . . . Fastest Speed 50 | 50 160 160 Average Speed 157 | 133 160 162 Slowest Speed 250 | 250 160 250 Overloaded Moves . | . . . Propulsion Burnouts . | . . . Robots Hopped . | . . . Cave-ins Triggered . | . . . Exploration Rate (%) 16 | 4 33 13 Regions Visited 2 Branch Regions . Pre-discovered Areas . | . . . Known Exits Taken 1 | . 1 . Unknown Exits Taken 1 | 1 . . Scrap Searched . | . . . Spaces Dug . | . . . Terrain Destroyed 6 | . . 6 Melee . | . . . Projectile . | . . . AOE 6 | . . 6 Terrain Rammed . | . . . Walls Destroyed . | . . . Machines Disabled . | . . . Actions | -11 -10 -9 --------- Run | Scr Mat Mat Total 501 | 57 272 172 Wait 55 | . 44 11 Move 355 | 43 184 128 Hop . | . . . Pick Up 19 | 8 9 2 Fast Attach 2 | 2 . . Attach 14 | 4 3 7 Detach . | . . . Swap 3 | . 2 1 Drop 4 | . 4 . Fire 48 | . 26 22 Melee . | . . . Ram 1 | . . 1 Kick . | . . . Crush . | . . . Escape Stasis . | . . . Rewire . | . . . Trap . | . . . Miscellaneous . | . . . Route ------- -11/Scrapyard -10/Materials -9/Materials (discovered 1 exit: [*Min]) History --------- Turn | Location | Event 8 | -11/Scrapyard | Discovered new exit (range 15) 74 | -11/Scrapyard | Entered Materials 313 | -10/Materials | Build established: Mutant 488 | -10/Materials | Discovered new exit (range 13) 506 | -10/Materials | Identified exit to Materials 507 | -10/Materials | Entered another Materials area 507 | -9/Materials | Evolved 2 slots: Propulsion x1, Utility x1 667 | -9/Materials | Discovered new exit (range 16) 765 | -9/Materials | Core integrity fell below 50% 782 | -9/Materials | Core integrity fell below 20% 800 | -9/Materials | Destroyed by Y-45 Defender with Beam Rifle Last Messages --------------- 00770_ Hvy. Assault Rifle destroyed. 00771_ U-05 Engineer builds a Wall. 00771_ Assault Rifle destroyed. 00772_ Slammed into G-34 Mercenary. 00776_ U-05 Engineer builds a Wall. 00777_ Acquired 58 matter. 00781_ U-05 Engineer builds a Wall. 00782_ Acquired Lgt. Treads. 00783_ Grenade Launcher destroyed. 00783_ U-05 Engineer lays Concrete. 00786_ G-34 Mercenary suffers critical hit (Destroy). 00786_ G-34 Mercenary destroyed. 00787_ U-05 Engineer lays Concrete. 00790_ K-01 Serf collects debris. 00791_ U-05 Engineer lays Concrete. 00797_ Aluminum Leg destroyed. 00797_ U-05 Engineer lays Concrete. 00798_ K-01 Serf collects debris. 00798_ U-05 Engineer lays Concrete. 00799_ U-05 Engineer builds a Wall. Map ----- +----------------------------------------------------+ | ?????????????????????????????????????????????????? | | ?????????????????????????????????????????????????? | | ?????????????????????????????????????????????????? | | ?????????????????????????????????????????????????? | | ?????????????????????????????????????????????????? | | ?????????????????????????????????????????????????? | | ?????????????????????????????????????????????????? | | ?????????????????????????????????????????????????? | | ?????????????????????????????????????????????????? | | ?????????????????????????????????????????????????? | | ?????????????????????????????????????????????????? | | ?????????????????????????????????????????????????? | | ?????????????????????????????????????????????????? | | ????????????????????????#????????????????????????? | | ????????????????????????# ???????????????????????? | | ????????????????????????# ??????????????????????? | | ????????????????????????+ ########?????????????? | | ????????????????????????# #?????????????? | | ????????????????????????# #?????????????? | | ????????????????????????# / #?????????????? | | ????????????????????????######## % #?????????????? | | ???????????????????????????????#!%%#?????????????? | | ??????????????????????????????## !#?????????????? | | ?????????????##################g% !##????????##### | | ?????????? gu=*##???###### # | | ?????????? @ gk![u##???# | | ?????????? Y %*u###### | | ?????????????################## **%# ## | | ??????????????????????????????# [!*# ## "" | | ??????????????????????????????# %=+ ##^ """"" | | ??????????????????????????????# #### ## """"" | | ??????????????????????######### #??# ## """" ^ | | ??????????????????????#"""""""# #??# ## """ | | ??????????????????????#" |"! "# #??# ## | | ???????????????? ##### "# #####/### | | ??????????????? | | ??????????????? ! < | | ??????????????? | | ????????????????? ##### #######/####/####### | | ??????????????????????########????? % ?# ????? | | ??????????????????????????????????# ! / "???? | | ??????????????????????????????????# # ?""??? | | ??????????????????????????????????# "Y" # ??? | | ??????????????????????????????????# """ # ? ?? | | ??????????????????????????????????# # !?= | | ??????????????????????????????????########! !??? | | ??????????????????????????????????????????? ?????? | | ?????????????????????????????????????????????????? | | ?????????????????????????????????????????????????? | | ?????????????????????????????????????????????????? | +----------------------------------------------------+ Best States ------------- Heat Dissipation 28 Energy Generation 10 Energy Capacity 250 Matter Stores 213 Matter Capacity 300 Sight Range 16 Terrain Scan Density 10 Evasion (%) 40 Recoil Reduction 2 Item Schematics ----------------- None Robot Schematics ------------------ None Fabricated ------------ Nothing Alien Tech Used ----------------- None Achievements -------------- None Challenges ------------ None Game ------ Seed ForceRemoteRail Manual? 0 Play Time 00:09:42 Cumulative 31.4 hours Start 2022.07.18 @ 19:10:50 End 2022.07.18 @ 19:18:42 Sessions 1 Manual Loads 0 Difficulty Rogue Special Mode None Game No. 89 Rogue 89 Adventurer 0 Explorer 0 Win Type - Total 0 Types 0/0/0/0/0/0/0/0/0 Lore% 21 Gallery% 30 Achievement% 21 Wizard Run 0 Options --------- ASCII 0 Keyboard 0 Movement Mouse Keybinds 0 Fullscreen 1 Font 18/Terminus Map View 76x50 Tactical HUD 1 Map Filters NONE Filters NONE Steam 1 RUN: 23521581-5212-46d2-b0e0-4cfb4ea8053c